{"text_format":"1","workbook":"xlsx","n_sheets":6,"sheets":["Инструкция","Заполнять","Лист1","Группы","Печатать","Лист4"],"not_rendered":{"charts":0,"images":0,"macros":1,"external_links":0,"defined_names":1,"comments":0,"pivot_tables":0},"unopened":[],"bounds":{"document_bytes":16777216,"sheet_cells":100000,"rows_first":2000,"rows_last":500,"rows_between":2000,"halvings":0,"cell_chars":16384,"cell_head_chars":4096},"cells_cut":0,"cells_raw":0,"read":"whole","date_system":"1900"}

{"sheet":"Инструкция","index":0,"n_rows":10,"n_cols":1,"rows_kept":10,"cut":false,"hidden":false,"merged":[[1,0,5,9]]}
["Версия от 18.09.2016"]
["Данная программа является некоммерческим проектом, созданным на добровольной основе для личного использования. Программа постоянно совершенствуется о дорабатывается, в случае обнаружения ошибок обратитесь к автору.  ВНИМАНИЕ: ячейки с формулами защищены от записи. Пароль разблокировки листа \"1\" без кавычек. Изменения защищённых ячеек могут привести к нарушению работы программы. Изменяйте защищённые ячейки только в случае уверенности в необходимости этого. Автор не несёт ответственность за потерю данных в случае неправильного использования программы. "]
[]
[]
[]
[]
[]
["1) Введите данные в поля, отмеченные жёлтым. При необходимости воспользуйтесь кнопкой для перевода ФИО в родительный падеж, или введите ФИО в родительном падеже вручную."]
["2) Перейдите на лист \"Печать\" и распечатайте или скопируйте текст."]
["3) Для внесения изменений текст необходимо скопировать  и втавить как данные на другой лист Excel или Word, после чего редактировать."]

{"sheet":"Заполнять","index":1,"n_rows":19,"n_cols":18,"rows_kept":19,"cut":false,"hidden":false,"merged":[[0,1,0,7],[16,2,16,3],[17,2,17,3],[18,2,18,3],[4,2,4,6],[11,2,11,3],[12,2,12,3],[13,2,13,3],[14,2,14,3],[15,2,15,3],[10,2,10,3],[8,2,8,3],[8,7,8,8],[4,7,4,11],[1,2,1,3],[1,5,1,6],[2,2,2,3],[2,5,2,6],[2,8,2,9]]}
["Организация","Министерство образования и науки Мурманской области\nГосударственное автономное профессиональное образовательное учреждение \nМурманской области \n«Апатитский политехнический колледж имени Голованова Георгия Александровича»\nГАПОУ МО «АПК им. Голованова Г.А.»\n\n184209, г. Апатиты, ул. Энергетическая д. 35\nтел.: 8-81555-6-28-21, факс: 8-81555-6-28-21\nE-mail: apc@apatity-college.ru"]
["Руководитель","должность","директор",null,"Ф.И.О.","Л.В. Гришина"]
["Исполнитель","должность","мастер п/о",null,"Ф.И.О.","В.А. Некрасов",null,"Телефон","8 906 288 24 25"]
[]
["Обучающийся","Ф.И.О.","Петечкин Василий Петрович",null,null,null,null,"Петечкина Василия Петровича"]
[null,"год рождения",null,"1998-01-14"]
[null,"Срок обучения",null,"начало ",2014,"конец",2016]
[null,"Название группы",null,"21",{"$f":"IFERROR(INT(D8),\"сп\")","v":21},{"$f":"IF(E8=\"сп\",\"специальности \",\"профессии \")","v":"профессии "},{"$f":"CONCATENATE(VLOOKUP(D8,Группы!A1:N20,2),\" \",VLOOKUP(D8,Группы!A1:N20,3))","v":"13.01.10 Электромонтер по ремонту и обслуживанию электрооборудования (по отраслям)"}]
[null,"Адрес","Мурманская",null," обл.,\nг. ","Апатиты",", ул. ","Кирова",null,", д. ",1,", кв. ",11,".",null,null,null,{"$f":"CONCATENATE(C9, E9,F9,G9,H9,J9,K9,L9,M9,N9)","v":"Мурманская обл.,\nг. Апатиты, ул. Кирова, д. 1, кв. 11."}]
[]
["пол",null,"м"]
["дисциплина",null,2]
["ответственным",null,"ответственный"]
["пропуски",null,5]
["успеваемость",null,5]
["жизненная позиция",null,3]
["семья",null,"неполн благ"]
["здоровье",null,4]
["физ подготовка",null,4]

{"sheet":"Лист1","index":2,"n_rows":57,"n_cols":16,"rows_kept":57,"cut":false,"hidden":true,"merged":[[0,11,7,21],[9,11,13,21],[42,15,48,25]]}
["дисциплина",1,"крайне низкий уровень дисциплины",null,null,null,null,null,null,null,null,{"$f":"\"За время прохождения обучения с \"&Заполнять!E7&\" по \"&Заполнять!G7&\" год, \"&Заполнять!C5&\" показал\"&Лист1!B55&\" себя \"&VLOOKUP(D22,B49:C51,2)&\" стороны. Демонстрировал\"&Лист1!B55&\" \"&VLOOKUP(Заполнять!C12,Лист1!B1:F5,2)&\", \"&C6&Заполнять!C13&\" подход к теоретическому и практическому обучению, выполнению общественных работ и поручений преподавателей, мастера, классного руководителя.\"","v":"За время прохождения обучения с 2014 по 2016 год, Петечкин Василий Петрович показал себя как с положительной, так и с отрицательной стороны. Демонстрировал низкий уровень дисциплины, но ответственный подход к теоретическому и практическому обучению, выполнению общественных работ и поручений преподавателей, мастера, классного руководителя."}]
[null,2,"низкий уровень дисциплины"]
[null,3,"удовлетворительный уровень дисциплины"]
[null,4,"высокий уровень дисциплины"]
[null,5,"очень высокий уровень дисциплины"]
[null,null,{"$f":"IF(OR(AND(Заполнять!C12<3,Заполнять!C13=Лист1!B7),AND(Заполнять!C12>=3,Заполнять!C13=Лист1!B8)),\"но \",\"а также \")","v":"но "}]
[null,"ответственный"]
[null,"безответственный"]
[]
["пропуски",1,"Имеет склонность к полному самовольному оставлению учебного процесса",null,null,null,null,null,null,null,null,{"$f":"VLOOKUP(Заполнять!C14,Лист1!B10:C14,2)&Лист1!C15&VLOOKUP(Заполнять!C15,Лист1!B16:C20,2)&\" Жизненная позиция \"&VLOOKUP(Заполнять!C16,Лист1!B24:C28,2)","v":"Пропуски без уважительной причины отсутствуют, в связи с чем успеваемость  находится на высоком уровне, преобладающие оценки: \"хорошо\" и \"отлично\". Жизненная позиция компромиссная, не охотно вовлекается в общественные мероприятия, но в дальнейшем может проявлять активность."}]
[null,2,"Имеет множественные пропуски без уважительной причины"]
[null,3,"Имеет пропуски без уважительной причины"]
[null,4,"Практически не имеет пропусков без уважительной причины"]
[null,5,"Пропуски без уважительной причины отсутствуют"]
[null,null,{"$f":"IF(OR(AND(Заполнять!C14<=3,Заполнять!C15>3),AND(Заполнять!C14>3,Заполнять!C15<=3)),\", однако \",\", в связи с чем \")","v":", в связи с чем "}]
["успеваемость",1,"успеваемость находится на крайне низком уровне, имели место многокрыные пересдачи, необходима индивидуальная работа и усиленный контроль."]
[null,2,"успеваемость находится на низком уровне, удовлетворительный уровень знаний достигается только индивидуальной работой."]
[null,3,"успевает на оценку \"удовлетворительно\"."]
[null,4,"успеваемость находится на уровне выше среднего."]
[null,5,"успеваемость  находится на высоком уровне, преобладающие оценки: \"хорошо\" и \"отлично\"."]
[]
[null,{"$f":"OR(Заполнять!C12<3,Заполнять!C13=B8,Заполнять!C14<3,Заполнять!C15<3)","v":true},{"$f":"OR(Заполнять!C12>=3,Заполнять!C13=B7,Заполнять!C14>=3,Заполнять!C15>=3)","v":true},{"$f":"C22-B22","v":0}]
[]
["жизненная позиция",1,"пассивная, наблюдается полное отсутствие желания взаимодействовать с коллективом."]
[null,2,"пассивная, наблюдается нежелание взаимодействовать с коллективом без необходимости."]
[null,3,"компромиссная, не охотно вовлекается в общественные мероприятия, но в дальнейшем может проявлять активность."]
[null,4,"активная, по возможности принимает участие в общественных мероприятиях."]
[null,5,"активная, принимает участие во всех общественных мероприятиях."]
[]
["семья","неполн благ","Проживает с одним родителем в благополучных условиях. Родитель проявляет интерес к успеваемости, осуществляет воспитательный процесс на должном уровне."]
[null,"неполн небл","Проживает с одним родителем в неблагополучных условиях. Авторитет родителя отсутствует. Должный контроль не осуществляется."]
[null,"опека","Является сиротой, находится под опекой."]
[null,"полн благ","Проживает в полной семье в благополучных условиях. Родители проявляют интерес к успеваемости, осуществляют воспитательный процесс на должном уровне."]
[null,"полн небл","Проживает в полной семье в неблагополучных условиях. Авторитет родителей отсутствует. Должный контроль не осуществляется."]
[null,"сирота","Является сиротой."]
[]
["здоровье",1,"Состояние здоровья неудовлетворительное, частые длительные пропуски по болезни, нездоровый, болезненный внешний вид. Имеются тяжёлые хронические заболевания."]
[null,2,"Состояние здоровья неудовлетворительное, частые пропуски по болезни, нездоровый, болезненный внешний вид."]
[null,3,"Состояние здоровья удовлетворительное, единичные случаи длительных больничных, изредка наблюдались недомогания на занятиях."]
[null,4,"Состояние здоровья хорошее, отсутствие длительных больничных, случаев недомогания на занятиях."]
[null,5,"Состояние здоровья отличное, крайне редки случяи пропусков по болезни."]
[]
["физ подготовка",1,{"$f":"\"Физически развит\"&B55&\" плохо, даже небольшие нагрузки вызывают тяжёлые последствия для самочувствия.\"","v":"Физически развит плохо, даже небольшие нагрузки вызывают тяжёлые последствия для самочувствия."},null,null,null,null,null,null,null,null,null,null,null,null,{"$f":"VLOOKUP(Заполнять!C17,Лист1!B30:C35,2)&\"\n\"&\"\"&VLOOKUP(Заполнять!C18,Лист1!B37:C41,2)&\" \"&VLOOKUP(Заполнять!C19,Лист1!B43:C47,2)","v":"Проживает с одним родителем в благополучных условиях. Родитель проявляет интерес к успеваемости, осуществляет воспитательный процесс на должном уровне.\nСостояние здоровья хорошее, отсутствие длительных больничных, случаев недомогания на занятиях. Хорошо физически развит, результаты на занятиях по физической культуре и соревнованиях выше средних."}]
[null,2,{"$f":"\"Физически развит\"&B55&\" плохо, с трудом успевает на оценку \"&M48&\" на занятиях по физической культуре.\"","v":"Физически развит плохо, с трудом успевает на оценку \"удовлетворительно\" на занятиях по физической культуре."}]
[null,3,{"$f":"\"Физическое развитие среднее, на занятиях по физической культуре успевает на уценку \"&M48&\" и выше.\"","v":"Физическое развитие среднее, на занятиях по физической культуре успевает на уценку \"удовлетворительно\" и выше."}]
[null,4,{"$f":"\"Хорошо физически развит\"&B55&\", результаты на занятиях по физической культуре и соревнованиях выше средних.\"","v":"Хорошо физически развит, результаты на занятиях по физической культуре и соревнованиях выше средних."}]
[null,5,{"$f":"\"Отлично физически развит\"&B55&\", имеет высокие показатели на занятиях по физической культуре и соревнованиях.\"","v":"Отлично физически развит, имеет высокие показатели на занятиях по физической культуре и соревнованиях."}]
[null,null,null,null,null,null,null,null,null,null,null,null,"\"удовлетворительно\""]
[null,-1,"с отрицательной"]
[null,0,"как с положительной, так и с отрицательной"]
[null,1,"с положительной",null,null,null,null,null,null,null,null,null,null,null,null,{"$f":"\"на обучающ\"&IF(Заполнять!C11=\"м\",B56,C56)&\" ГАПОУ МО «АПК им. Голованова Г.А.»\"","v":"на обучающегося ГАПОУ МО «АПК им. Голованова Г.А.»"}]
[null,null,null,null,null,null,null,null,null,null,null,null,null,null,null,{"$f":"\"по \"&Заполнять!F8&\"\"&Заполнять!G8&\"\"","v":"по профессии 13.01.10 Электромонтер по ремонту и обслуживанию электрооборудования (по отраслям)"}]
[null,"м",null,null,null,null,null,null,null,null,null,null,null,null,null,{"$f":"Заполнять!H5&\", \"&TEXT(Заполнять!D6,\"ДД.ММ.ГГГГ\")&\" г.р.,\"","v":"Петечкина Василия Петровича, 14.01.1998 г.р.,"}]
[null,"ж",null,null,null,null,null,null,null,null,null,null,null,null,null,{"$f":"\"проживающ\"&IF(Заполнять!C11=\"м\",Лист1!B57,Лист1!C57)&\" по адресу: \"&Заполнять!R9","v":"проживающего по адресу: Мурманская обл.,\nг. Апатиты, ул. Кирова, д. 1, кв. 11."}]
[null,{"$f":"IF(Заполнять!C11=\"ж\",\"а\",\"\")","v":""},{"$f":"IF(Заполнять!C11=\"ж\",\"ой\",\"ым\")","v":"ым"}]
[null,"егося","уюся"]
[null,"его","ую"]

{"sheet":"Группы","index":3,"n_rows":24,"n_cols":3,"rows_kept":24,"cut":false,"hidden":true,"merged":[]}
["01","29.01.29","Мастер столярного и мебельного производства"]
["02","190631.01","Автомеханик"]
["04","23.01.06","Машинист дорожных и строительных машин"]
["06","150709.02","Сварщик (электросварочные и газосварочные работы)"]
["07","08.01.08","Мастер отделочных строительных работ"]
["08","43.01.02","Парикмахер"]
["09","46.01.03","Делопроизводитель"]
["11","21.01.10","Ремонтник горного оборудования"]
["12","23.01.06","Машинист дорожных и строительных машин"]
[12,null,"Маляр штукатур"]
["21","13.01.10","Электромонтер по ремонту и обслуживанию электрооборудования (по отраслям)"]
["31","220703.02","Слесарь по контрольно-измерительным приборам и автоматике "]
["61","100701.01","Продавец, контролер-кассир"]
["81","19.01.17","Повар, кондитер"]
["ГС","43.02.11","Гостиничный сервис"]
["ооп","43.02.01","Организация обслуживания в общественном питании"]
["паи","43.02.02","Парикмахерское искусство"]
["сп","22.02.06","Сварочное производство"]
["то","23.02.03","Техническое обслуживание и ремонт автомобильного транспорта"]
["тпоп","19.02.10","Технология продукции общественного питания"]
["ТР","43.02.10","Туризм"]
["ТЭ","13.02.11","Техническая эксплуатация и обслуживание электрического и электромеханического оборудования (по отраслям)"]
["тэ(стар)","140448","Техническая эксплуатация и обслуживание электрического и электромеханического оборудования (по отраслям)"]
["тэм","23.02.04","Техническая эксплуатация подъёмно-транспортных, строительных, дорожных машин и оборудования (по отраслям)"]

{"sheet":"Печатать","index":4,"n_rows":42,"n_cols":9,"rows_kept":42,"cut":false,"hidden":false,"merged":[[33,1,33,2],[2,3,2,7],[4,1,4,9],[5,1,5,9],[6,1,6,9],[7,1,7,9],[9,0,28,10]]}
[]
[]
[null,null,null,"ХАРАКТЕРИСТИКА"]
[]
[null,{"$f":"Лист1!P51","v":"на обучающегося ГАПОУ МО «АПК им. Голованова Г.А.»"}]
[null,{"$f":"Лист1!P52","v":"по профессии 13.01.10 Электромонтер по ремонту и обслуживанию электрооборудования (по отраслям)"}]
[null,{"$f":"Лист1!P53","v":"Петечкина Василия Петровича, 14.01.1998 г.р.,"}]
[null,{"$f":"Лист1!P54","v":"проживающего по адресу: Мурманская обл.,\nг. Апатиты, ул. Кирова, д. 1, кв. 11."}]
[]
[{"$f":"\"          \"&Лист1!L1&\"\n\"&\"          \"&Лист1!L10&\"\n\"&\"          \"&Лист1!P43","v":"          За время прохождения обучения с 2014 по 2016 год, Петечкин Василий Петрович показал себя как с положительной, так и с отрицательной стороны. Демонстрировал низкий уровень дисциплины, но ответственный подход к теоретическому и практическому обучению, выполнению общественных работ и поручений преподавателей, мастера, классного руководителя.\n          Пропуски без уважительной причины отсутствуют, в связи с чем успеваемость  находится на высоком уровне, преобладающие оценки: \"хорошо\" и \"отлично\". Жизненная позиция компромиссная, не охотно вовлекается в общественные мероприятия, но в дальнейшем может проявлять активность.\n          Проживает с одним родителем в благополучных условиях. Родитель проявляет интерес к успеваемости, осуществляет воспитательный процесс на должном уровне.\nСостояние здоровья хорошее, отсутствие длительных больничных, случаев недомогания на занятиях. Хорошо физически развит, результаты на занятиях по физической культуре и соревнованиях выше средних."}]
[]
[]
[]
[]
[]
[]
[]
[]
[]
[]
[]
[]
[]
[]
[]
[]
[]
[]
[]
[]
[]
[]
[]
[null,{"$f":"Заполнять!C2","v":"директор"},null,null,null,null,null,null,{"$f":"Заполнять!F2","v":"Л.В. Гришина"}]
[]
[]
[]
[]
[]
[null,{"$f":"\"Исп. \"&Заполнять!F3","v":"Исп. В.А. Некрасов"}]
[null,{"$f":"Заполнять!C3","v":"мастер п/о"}]
[null,{"$f":"Заполнять!I3","v":"8 906 288 24 25"}]

{"sheet":"Лист4","index":5,"n_rows":2,"n_cols":12,"rows_kept":2,"cut":false,"hidden":true,"merged":[]}
[null,1,2,3,4,5,6,7,8,9,10,11]
[null,{"$f":"Печатать!D3","v":"ХАРАКТЕРИСТИКА"},{"$f":"Печатать!B5","v":"на обучающегося ГАПОУ МО «АПК им. Голованова Г.А.»"},{"$f":"Печатать!B6","v":"по профессии 13.01.10 Электромонтер по ремонту и обслуживанию электрооборудования (по отраслям)"},{"$f":"Печатать!B7","v":"Петечкина Василия Петровича, 14.01.1998 г.р.,"},{"$f":"Печатать!B8","v":"проживающего по адресу: Мурманская обл.,\nг. Апатиты, ул. Кирова, д. 1, кв. 11."},{"$f":"Лист1!L1","v":"За время прохождения обучения с 2014 по 2016 год, Петечкин Василий Петрович показал себя как с положительной, так и с отрицательной стороны. Демонстрировал низкий уровень дисциплины, но ответственный подход к теоретическому и практическому обучению, выполнению общественных работ и поручений преподавателей, мастера, классного руководителя."},{"$f":"Лист1!L10","v":"Пропуски без уважительной причины отсутствуют, в связи с чем успеваемость  находится на высоком уровне, преобладающие оценки: \"хорошо\" и \"отлично\". Жизненная позиция компромиссная, не охотно вовлекается в общественные мероприятия, но в дальнейшем может проявлять активность."},{"$f":"Лист1!P43","v":"Проживает с одним родителем в благополучных условиях. Родитель проявляет интерес к успеваемости, осуществляет воспитательный процесс на должном уровне.\nСостояние здоровья хорошее, отсутствие длительных больничных, случаев недомогания на занятиях. Хорошо физически развит, результаты на занятиях по физической культуре и соревнованиях выше средних."},null,{"$f":"Печатать!B34","v":"директор"},{"$f":"Печатать!I34","v":"Л.В. Гришина"}]